bitfinex/quotes_ETHUSD_20241018
["timestamp","ask_amount","ask_price","bid_price","bid_amount"]
[1729260057481,3.80141,2630.6,2630.0,3.80225]
[1729260057680,3.80141,2630.6,2630.1,0.0760349]
[1729260057876,3.80154,2630.6,2630.1,0.0760349]
[1729260058102,3.80151,2630.6,2630.0,3.8782649]
[1729260058305,3.80151,2630.6,2629.7,0.05705193]
[1729260058306,0.7733,2630.2,2629.7,3.85972193]
[1729260058519,4.57494,2630.5,2629.9,3.80242]
[1729260058682,4.57494,2630.5,2630.0,3.80227]
[1729260058887,3.80171,2630.4,2629.8,3.80249]
[1729260059091,3.80171,2630.4,2629.7,0.05705193]
[1729260059092,3.80198,2630.3,2629.7,0.05705193]
[1729260059496,3.80195,2630.3,2629.7,3.85972193]
[1729260059807,3.80195,2630.3,2629.7,3.85973193]
[1729260060006,0.837665,2630.4,2629.7,0.05705193]
[1729260060226,0.837665,2630.4,2629.7,3.85962193]
[1729260060438,3.80185,2630.3,2629.8,3.80254]
[1729260060922,4.57497,2630.5,2629.9,3.87838324]
[1729260061232,4.57497,2630.5,2630.0,3.80226]
[1729260061233,4.57486,2630.5,2630.0,3.80226]
[1729260061405,6.81091,2631.0,2630.0,3.80226]
[1729260061406,3.80106,2630.9,2630.3,3.80175]
[1729260061609,4.60195,2631.0,2630.5,3.80148]
[1729260061822,0.8011,2631.0,2630.4,3.87765726]
[1729260062035,0.8011,2631.0,2630.4,0.38776573]
[1729260062241,3.8011,2630.9,2630.3,3.80177]
[1729260062416,3.80118,2630.8,2630.2,3.80188]
[1729260062627,3.80118,2630.8,2630.3,3.80177]
[1729260062914,3.80148,2630.6,2629.9,4.58833]
[1729260063238,3.80148,2630.6,2629.7,0.05705193]
[1729260063239,3.80227,2630.1,2629.7,0.05705193]
[1729260063395,3.80257,2629.8,2629.7,0.05705193]
[1729260063596,3.80249,2629.9,2629.7,0.05705193]
[1729260063802,4.61577,2629.8,2629.7,0.05705193]
[1729260065503,0.8132,2629.8,2629.7,0.05705193]
[1729260065904,4.61577,2629.8,2629.7,0.05705193]
[1729260066439,3.803,2629.5,2629.4,0.01906528]
[1729260066651,0.8042,2629.4,2628.7,0.7593]
[1729260066859,4.60745,2629.4,2628.8,3.804]
[1729260067144,0.8042,2629.7,2629.2,3.80333]
[1729260067350,0.8042,2629.7,2629.4,3.8031]
[1729260067556,4.60649,2630.0,2629.4,3.80314]
[1729260067785,5.447352,2630.0,2629.4,3.80314]
[1729260067908,5.447352,2630.0,2629.3,4.56252]
[1729260067909,3.80243,2629.9,2629.3,8.36573]
[1729260068352,3.80243,2629.9,2629.4,3.80311]
[1729260068535,3.80243,2629.9,2629.3,4.56257]
[1729260068851,3.80243,2629.9,2629.3,8.36569]
[1729260069063,3.80243,2629.9,2629.4,3.80311]
[1729260069236,3.80243,2629.9,2629.3,0.7593]
[1729260069444,3.8026,2629.8,2629.3,0.7593]
[1729260069652,4.3471892,2629.9,2629.3,4.63858818]
[1729260069948,4.60652,2630.0,2629.3,4.63858818]
[1729260069949,4.60652,2630.0,2629.4,3.80304]
[1729260070119,0.8042,2630.0,2629.7,3.8027]
[1729260070321,4.58357,2630.2,2629.6,3.80285]
[1729260070528,4.58357,2630.2,2629.6,3.80278]
[1729260070850,5.341927,2630.2,2629.6,3.80278]
[1729260071349,5.341847,2630.2,2629.5,3.87894811]
[1729260071560,9.143977,2630.2,2629.5,3.80289]
[1729260071851,9.143977,2630.2,2629.6,3.80285]
[1729260072024,3.8022,2630.1,2629.5,3.80298]
[1729260072358,3.8027,2629.8,2629.2,3.80334]
[1729260072654,4.56274,2629.9,2629.0,3.80366]
[1729260072655,3.80289,2629.6,2629.0,3.80366]
[1729260072809,3.80289,2629.6,2629.1,3.80357]
[1729260073009,4.69162566,2629.8,2629.1,3.80357]
[1729260073010,3.80274,2629.7,2629.1,3.80357]
[1729260073234,3.80274,2629.7,2629.0,3.80366]
[1729260073235,3.80289,2629.6,2629.0,3.80366]
[1729260073442,0.88895566,2629.8,2628.9,0.13313569]
[1729260073443,3.80329,2629.4,2628.9,0.13313569]
[1729260073653,3.80343,2629.2,2628.9,0.05706738]
[1729260073864,3.80339,2629.3,2628.9,0.05706738]
[1729260074372,3.80367,2629.1,2628.4,4.55768]
[1729260074542,4.58936,2629.0,2628.4,3.80455]
[1729260074870,4.58936,2629.0,2628.3,3.80466]
[1729260074871,3.80395,2628.9,2628.3,3.80466]
[1729260075365,3.80387,2628.9,2628.0,0.88559015]
[1729260075525,5.428673,2629.0,2628.0,0.88559015]
[1729260075526,1.624883,2629.0,2628.4,3.80451]
[1729260075728,0.7856,2629.0,2628.5,3.80437]
[1729260075969,0.7856,2629.0,2628.2,3.80484]
[1729260076277,0.7856,2629.0,2628.6,3.80419]
[1729260076431,0.7856,2629.0,2628.3,7.60925]
[1729260076635,8.39332,2629.0,2628.3,8.370215]
[1729260076849,4.58944,2629.0,2628.3,4.565545]
[1729260077050,3.8042,2628.7,2628.1,7.60987]
[1729260077233,3.80422,2628.7,2628.1,3.80495]
[1729260077433,3.80422,2628.7,2628.0,0.88559015]
[1729260077434,3.80455,2628.5,2628.0,0.05709015]
[1729260077890,3.80455,2628.5,2628.0,3.86224015]
[1729260078186,3.80408,2628.8,2628.1,4.62883]
[1729260078332,3.80417,2628.7,2628.1,5.01505402]
[1729260078537,3.80432,2628.6,2628.0,3.86224015]
[1729260078847,3.80401,2628.8,2628.1,3.80495]
[1729260079049,3.80417,2628.7,2628.1,3.80495]
[1729260079373,3.80417,2628.7,2628.1,3.80494]
[1729260079572,3.80417,2628.7,2628.0,0.05709015]
[1729260079744,0.8149,2628.4,2628.0,0.05709015]
[1729260080589,3.80437,2628.6,2628.0,3.80506]
[1729260080747,0.8149,2628.7,2628.2,3.80481]
[1729260080946,4.61911,2628.7,2628.2,3.80481]
[1729260081386,3.80432,2628.6,2628.0,3.80506]
[1729260081675,0.8149,2628.7,2628.0,0.380506]
[1729260081876,0.8149,2628.7,2628.2,3.80474]
[1729260082265,0.8149,2628.7,2628.0,3.80503]
[1729260082266,4.61908,2628.7,2628.0,3.80503]
[1729260082440,3.80439,2628.6,2628.0,3.80503]
[1729260082641,0.8149,2628.7,2628.3,3.80466]
[1729260082874,0.8149,2628.7,2628.4,3.80452]
[1729260083077,0.8322,2629.2,2628.8,3.804]
[1729260083688,0.8322,2629.2,2628.9,3.80374]
[1729260084057,0.8322,2629.2,2628.7,3.80406]
[1729260084268,0.8322,2629.2,2628.6,3.80429]
[1729260084269,4.63571,2629.2,2628.6,3.80429]
[1729260084453,4.63571,2629.2,2628.5,3.80434]
[1729260084454,3.80372,2629.1,2628.5,3.80434]
[1729260084656,4.63571,2629.2,2628.6,3.80423]
[1729260084657,4.6357,2629.2,2628.6,3.80423]
[1729260084856,3.80363,2629.1,2628.6,3.80423]
[1729260085679,3.80374,2629.0,2628.4,0.760918]
[1729260085983,0.8041,2628.6,2627.8,4.57047]
[1729260086205,4.60847,2628.6,2628.0,3.8051]
[1729260086348,8.41289,2628.6,2628.0,3.8051]
[1729260086542,4.60847,2628.6,2628.1,3.805]
[1729260086740,0.8041,2628.6,2628.1,3.80492]
[1729260086969,3.80411,2628.8,2627.8,0.7651]
[1729260086970,0.8041,2628.8,2628.3,3.80464]
[1729260087519,1.648033,2629.1,2628.6,3.80422]
[1729260087843,0.8041,2629.1,2628.5,3.80445]
[1729260088067,0.8041,2629.1,2628.9,3.80386]
[1729260088552,0.8041,2629.1,2628.7,3.80413]
[1729260088770,0.8041,2629.4,2628.9,3.80375]
[1729260088956,0.8041,2629.4,2629.1,3.8035]
[1729260089156,0.7579,2629.9,2629.0,0.55]
[1729260089368,0.7579,2629.9,2629.3,0.8137]
[1729260089577,0.7579,2630.2,2629.7,3.80261]
[1729260089770,4.55991,2630.2,2629.7,3.80261]
[1729260090080,3.80213,2630.1,2629.5,7.60583]
[1729260090287,4.55991,2630.2,2629.5,3.80291]
[1729260090588,5.015901,2630.2,2629.7,3.80271]
[1729260090794,0.7579,2630.2,2629.5,3.803]
[1729260090958,0.7579,2630.5,2629.6,0.6260524]
[1729260091144,0.7579,2630.5,2629.9,3.80232]
[1729260091344,0.7579,2630.5,2629.9,4.61902]
[1729260091767,3.80172,2630.4,2629.9,0.8167]
[1729260092083,4.637824,2630.4,2629.9,0.8167]
[1729260092394,0.836104,2630.4,2629.5,0.8167]
[1729260092547,0.7579,2630.5,2629.5,0.8167]
[1729260092548,3.80223,2630.1,2629.5,3.80292]
[1729260092927,3.80223,2630.1,2629.4,3.80303]
[1729260092928,3.8025,2629.9,2629.4,3.80312]
[1729260093315,0.8122,2630.0,2629.3,0.46745549]
[1729260093316,3.80232,2630.0,2629.3,4.27064549]
[1729260093627,3.80232,2630.0,2629.4,3.80307]
[1729260093830,1.177932,2629.9,2629.3,4.27064549]
[1729260094015,4.60015,2629.9,2629.4,3.80308]
[1729260094335,3.80289,2629.6,2629.4,0.46743771]
[1729260094752,3.80312,2629.5,2629.1,0.0570667]
[1729260095036,3.0,2629.8,2629.1,0.0570667]
[1729260095037,4.58021,2629.7,2629.1,0.0570667]
[1729260095381,0.7775,2629.7,2629.1,0.0570667]
[1729260095597,4.1806,2629.6,2629.1,0.0570667]
[1729260095786,4.1806,2629.6,2629.1,3.8606367]
[1729260095986,3.80285,2629.6,2629.1,3.8606367]
[1729260096231,7.60578,2629.6,2629.1,0.0570667]
[1729260096412,3.80301,2629.5,2629.1,0.0570667]
[1729260096624,3.80285,2629.6,2629.1,0.0570667]
[1729260096831,3.80311,2629.5,2629.1,0.0570667]
[1729260097140,3.80322,2629.4,2629.1,0.0570667]
[1729260097515,0.7775,2629.7,2629.1,3.8605067]
[1729260097847,3.80286,2629.6,2629.1,3.8605067]
[1729260098047,3.8031,2629.5,2629.1,0.0570667]
[1729260098227,3.80331,2629.3,2629.1,0.0570667]
[1729260098432,3.80371,2629.1,2628.5,0.8265]
[1729260098649,4.58603,2629.2,2628.5,0.8265]
[1729260098650,4.58605,2629.2,2628.7,3.80413]
[1729260098804,0.7826,2629.2,2628.8,3.80399]
[1729260099829,3.80338,2629.3,2628.6,3.80419]
[1729260100030,0.7843,2629.6,2628.6,3.80419]
[1729260100216,3.80334,2629.3,2628.6,3.80419]
[1729260100421,3.8041,2628.8,2628.4,0.46761555]
[1729260100622,3.80417,2628.7,2628.4,0.46761555]
[1729260101519,3.80445,2628.5,2628.4,0.46761555]
[1729260101933,3.0,2628.7,2628.4,0.46761555]
[1729260102233,3.80445,2628.5,2628.4,0.46761555]
[1729260102553,3.80462,2628.4,2627.9,3.80528]
[1729260102708,3.80481,2628.3,2627.8,3.80544]
[1729260102909,3.80481,2628.3,2627.7,7.61104]
[1729260103111,3.80481,2628.3,2627.8,4.18310583]
[1729260103311,3.80472,2628.4,2627.9,0.37766145]
[1729260103616,7.60944,2628.4,2627.9,0.37766145]
[1729260103837,3.80472,2628.4,2627.9,0.37766145]
[1729260104045,3.80478,2628.3,2627.9,0.37766145]
[1729260104260,3.80509,2628.1,2627.5,3.80578]
[1729260104444,8.91597657,2628.5,2627.4,0.05710295]
[1729260104445,3.8047,2628.4,2627.8,3.80534]
[1729260104770,3.80489,2628.2,2627.6,3.80563]
[1729260105071,3.80489,2628.2,2627.4,3.86303295]
[1729260105072,3.80518,2628.0,2627.7,0.24729926]
[1729260105275,3.80504,2628.1,2627.7,0.24729926]
[1729260105430,3.8051,2628.1,2627.7,0.24729926]
[1729260106064,3.80485,2628.3,2627.8,3.80539]
[1729260106271,3.80485,2628.3,2627.9,0.24728044]
[1729260106470,3.80485,2628.3,2627.8,4.05267985]
[1729260106656,3.80459,2628.4,2627.9,3.8053]
[1729260106864,3.80459,2628.4,2628.0,4.21037898]
[1729260106865,3.0,2628.4,2628.0,4.21037898]
[1729260107068,0.7847,2628.5,2628.0,4.21042898]
[1729260107233,4.58292,2628.8,2628.2,3.80477]
[1729260107438,3.80417,2628.7,2628.3,0.380477]
[1729260107695,7.60842,2628.7,2628.3,0.380477]
[1729260107989,0.7788,2628.8,2628.2,3.80486]
[1729260108132,0.7788,2628.8,2628.3,3.80465]
[1729260108327,0.7788,2628.8,2628.1,3.80492]
[1729260108553,0.7788,2628.8,2628.3,3.80465]
[1729260108766,0.7788,2628.8,2628.2,3.80484]
[1729260108767,4.5829,2628.8,2628.2,3.80484]
[1729260108941,3.80418,2628.7,2628.2,4.6063389]
[1729260109160,3.80418,2628.7,2628.2,0.8014989]
[1729260110135,3.80418,2628.7,2628.2,4.6063689]
[1729260110337,0.7788,2628.8,2628.2,0.8014989]
[1729260110554,3.80416,2628.7,2628.2,4.6063589]
[1729260110763,3.80416,2628.7,2628.1,3.80489]
[1729260110764,3.80434,2628.6,2628.1,3.80489]
[1729260111259,3.80416,2628.7,2628.2,3.80488]
[1729260111565,3.80416,2628.7,2628.2,3.80481]
[1729260111946,4.58288,2628.8,2628.2,3.8048]
[1729260112147,3.80419,2628.7,2628.0,4.21031898]
[1729260112343,0.7788,2628.8,2627.9,0.7982]
[1729260112344,3.80453,2628.5,2627.9,0.7982]
[1729260112575,3.80427,2628.7,2627.9,4.60337]
[1729260112775,3.80445,2628.5,2628.0,3.80509]
[1729260112978,3.80445,2628.5,2627.9,4.60351]
[1729260113167,3.80445,2628.5,2627.9,5.44441]
[1729260113673,3.80468,2628.4,2627.9,5.4444]
[1729260114038,3.80442,2628.6,2628.0,3.80505]
[1729260114238,3.80442,2628.6,2628.0,3.80508]
[1729260114434,3.80416,2628.7,2628.1,3.80495]
[1729260114748,3.80431,2628.6,2628.1,4.73747287]
[1729260115541,8.38707,2628.8,2628.2,3.80485]
[1729260115749,3.80417,2628.7,2628.2,3.80485]
[1729260116075,3.80417,2628.7,2628.1,8.54239287]
[1729260116262,3.80439,2628.6,2628.1,0.93252287]
[1729260116446,3.80439,2628.6,2627.9,5.44433]
[1729260116447,3.80462,2628.4,2627.9,4.60343]
[1729260116835,5.39025271,2629.3,2628.3,4.58404]
[1729260117061,2.78832738,2629.4,2628.3,4.58404]
[1729260117062,0.8034,2629.4,2628.7,3.80406]
[1729260117345,0.8034,2629.4,2628.9,3.80386]
[1729260118182,0.8034,2629.4,2628.9,3.80385]
[1729260118488,0.8034,2629.4,2628.8,3.80401]
[1729260118782,1.26405,2629.4,2628.8,3.80401]
[1729260118949,5.06726,2629.4,2628.8,3.80401]
[1729260119492,5.0672,2629.4,2628.8,3.80401]
[1729260119645,1.26405,2629.4,2628.8,3.80401]
[1729260120049,1.26405,2629.4,2628.8,3.80392]
[1729260120296,1.26405,2629.4,2628.9,3.80379]
[1729260120590,5.06731,2629.4,2628.8,3.80398]
[1729260120767,0.426405,2629.3,2628.8,3.80398]
[1729260121593,4.229695,2629.3,2628.8,3.80398]
[1729260121796,0.426405,2629.3,2628.3,0.7793]
[1729260121998,1.26405,2629.4,2628.3,4.58398]
[1729260122155,3.80385,2629.0,2628.4,3.80452]
[1729260122355,3.80373,2629.0,2628.5,3.80443]
[1729260122554,3.80373,2629.0,2628.5,7.60879]
[1729260122780,3.80373,2629.0,2628.5,3.80436]
[1729260123053,3.80373,2629.0,2628.3,8.38854]
[1729260123259,4.566573,2629.0,2628.5,3.80443]
[1729260123503,3.80373,2629.0,2628.5,3.80443]
[1729260123802,3.0,2629.2,2628.8,3.80391]
[1729260123968,3.8069,2629.4,2628.8,3.80391]
[1729260124167,3.8069,2629.4,2628.6,0.0760903]
[1729260124168,0.8069,2629.4,2628.9,0.7644]
[1729260124493,0.8069,2629.4,2628.9,4.56813]
[1729260125253,3.0,2629.6,2628.9,0.7644]
[1729260125480,4.65317528,2629.9,2629.0,0.05471617]
[1729260125664,0.85066528,2629.9,2629.5,3.80297]
[1729260125863,2.00606923,2630.3,2629.7,5.10071657]
[1729260125864,1.19161281,2630.3,2629.7,5.10071657]
[1729260126093,1.19161281,2630.9,2630.3,3.80174]
[1729260126313,3.80098,2630.9,2630.2,3.80185]
[1729260126455,3.80098,2630.9,2630.0,8.12904657]
[1729260126456,7.60216,2630.9,2630.3,3.80184]
[1729260126653,0.840166,2630.8,2630.3,3.80184]
[1729260126878,0.840166,2630.8,2630.4,3.80169]
[1729260127079,0.7995,2631.0,2630.5,3.80147]
[1729260127307,0.7995,2631.0,2630.4,3.80168]
[1729260127484,0.8272,2631.3,2630.7,3.80116]
[1729260127684,3.80071,2631.1,2630.6,3.8013]
[1729260127989,3.80071,2631.1,2630.4,3.80159]
[1729260128189,0.8272,2631.3,2630.4,3.80159]
[1729260128411,3.80077,2631.1,2630.5,3.80155]
[1729260128765,3.80084,2631.0,2630.5,3.80155]
[1729260128971,6.80079,2631.1,2630.6,3.80139]
[1729260129182,7.943652,2631.1,2630.4,3.80159]
[1729260129394,3.80126,2630.8,2630.3,3.80184]
[1729260129609,3.80129,2630.7,2630.1,3.80202]
[1729260129764,3.80129,2630.7,2630.2,3.80196]
[1729260130105,3.80171,2630.4,2630.0,0.05704733]
[1729260130290,3.80171,2630.4,2629.2,3.81227992]
[1729260130291,3.80266,2629.8,2629.3,0.8008]
[1729260130470,0.7706,2630.6,2629.3,4.60401]
[1729260130471,3.8025,2629.9,2629.3,4.60401]
[1729260130660,3.80275,2629.7,2629.3,0.8008]
[1729260131002,0.7813,2629.9,2629.3,3.80324]
[1729260131302,3.80235,2630.0,2629.4,8.12995657]
[1729260131497,3.7813,2630.2,2629.4,8.12995657]
[1729260131498,3.80181,2630.4,2629.9,3.80239]
[1729260131707,0.7578,2630.6,2629.9,3.80239]
[1729260132009,0.760255,2630.7,2629.7,5.11591657]
[1729260132160,3.80148,2630.6,2629.9,3.80242]
[1729260132504,0.760255,2630.7,2630.1,3.80203]
[1729260132807,3.80136,2630.7,2630.1,3.80203]
[1729260132985,3.80158,2630.5,2630.0,3.80218]
[1729260133303,3.80141,2630.6,2630.1,3.80205]
[1729260133798,3.80199,2630.2,2629.7,4.59167]
[1729260134002,3.80237,2630.0,2629.5,3.8029]
[1729260134159,3.80237,2630.0,2629.5,4.72585155]
[1729260134365,3.80226,2630.1,2629.5,4.72583155]
[1729260134693,3.80221,2630.1,2629.5,8.52876155]
[1729260134896,3.80221,2630.1,2629.5,4.72583155]
[1729260135099,3.80221,2630.1,2629.6,4.78908079]
[1729260135395,3.80193,2630.3,2629.6,4.78908079]
[1729260135569,3.80189,2630.3,2629.8,3.80246]
[1729260135768,3.80148,2630.6,2630.0,3.80227]
[1729260136007,3.80157,2630.5,2630.0,3.8022]
[1729260136162,3.80157,2630.5,2629.8,3.80248]
[1729260136483,3.80213,2630.1,2629.6,3.80282]
[1729260137267,3.80223,2630.1,2629.6,3.80283]
[1729260137463,3.80223,2630.1,2629.4,5.13717639]
[1729260137464,0.7501,2630.3,2629.4,0.81035982]
[1729260137706,0.7501,2630.3,2629.4,0.05705982]
[1729260137707,3.80296,2629.6,2629.4,0.05705982]
[1729260138002,3.803,2629.5,2629.4,0.05705982]
[1729260138209,3.803,2629.5,2628.8,4.32681657]
[1729260138210,3.803,2629.5,2628.8,0.7812]
[1729260138366,0.7629,2629.7,2628.8,0.7812]
[1729260138367,3.8033,2629.3,2628.8,0.7812]
[1729260138573,3.80361,2629.1,2628.6,7.60843]
[1729260138771,3.80333,2629.3,2628.6,3.8042]
[1729260138772,3.80345,2629.2,2628.6,3.8042]
[1729260139086,3.80362,2629.1,2628.6,3.8042]
[1729260139612,0.788,2629.1,2628.4,0.05708137]
[1729260139809,3.8043,2628.6,2628.4,0.05708137]
[1729260139976,3.80416,2628.7,2628.4,0.05708137]
[1729260140665,3.80416,2628.7,2628.2,4.62798]
[1729260140867,3.80416,2628.7,2628.2,5.47127]
[1729260141181,3.80416,2628.7,2628.2,1.66639]
[1729260141501,4.59159,2629.1,2628.2,1.66639]
[1729260141721,3.80428,2628.7,2628.2,1.66639]
[1729260142013,3.80427,2628.7,2628.2,1.66639]
[1729260142511,3.80427,2628.7,2628.2,5.47123]
[1729260143528,3.80427,2628.7,2628.1,0.05708715]
[1729260143676,3.80474,2628.3,2628.1,0.05708715]
[1729260144010,3.80453,2628.5,2628.1,0.05708715]
[1729260144213,4.565418,2628.5,2628.0,3.80517]
[1729260144414,4.565418,2628.5,2627.9,4.5614]
[1729260144415,3.80453,2628.5,2627.9,4.5614]
[1729260144920,3.80409,2628.8,2628.1,3.805]
[1729260145208,3.80395,2628.9,2628.3,3.80464]
[1729260145572,3.80402,2628.8,2628.2,3.8048]
[1729260145777,3.80402,2628.8,2628.2,4.18528]
[1729260145977,3.80402,2628.8,2628.3,3.80473]
[1729260146187,3.80397,2628.9,2628.3,3.80466]
[1729260146427,3.80387,2628.9,2628.3,3.80466]
[1729260146574,6.80382,2629.0,2628.2,4.18528]
[1729260146575,3.80402,2628.8,2628.2,4.18528]
[1729260146775,7.60814,2628.8,2628.2,4.18528]
[1729260146982,0.788,2629.1,2628.0,3.80507]
[1729260146983,3.80435,2628.6,2628.0,3.80507]
[1729260147284,7.60827,2628.8,2628.2,3.80487]
[1729260147513,3.80412,2628.8,2628.2,7.60966]
[1729260147926,3.80412,2628.8,2628.3,3.80464]
[1729260148213,0.788,2629.1,2628.0,0.07609501]
[1729260148214,4.5916,2629.1,2628.5,3.80437]
[1729260148422,4.5916,2629.1,2628.4,3.80451]
[1729260148423,3.80394,2628.9,2628.4,3.80451]
[1729260148572,3.80401,2628.8,2628.3,3.80473]
[1729260148777,3.80394,2628.9,2628.3,3.80473]
[1729260149082,3.80408,2628.8,2628.3,3.80473]
[1729260149326,3.80394,2628.9,2628.4,3.80459]
[1729260149545,3.80394,2628.9,2628.4,7.60918]
[1729260149714,9.15453,2629.1,2628.5,3.80444]
[1729260149926,3.80375,2629.0,2628.5,3.80444]
[1729260150250,5.35082,2629.1,2628.6,3.80428]
[1729260150455,6.80344,2629.2,2628.6,3.80428]
[1729260150639,3.80359,2629.1,2628.6,3.80428]
[1729260151007,3.80359,2629.1,2628.6,7.6085]
[1729260151340,6.80344,2629.2,2628.7,3.80412]
[1729260151509,0.7534,2629.4,2628.8,3.804]
[1729260151713,3.80261,2629.8,2629.1,3.80345]
[1729260151714,3.80279,2629.7,2629.1,3.80345]
[1729260152010,0.76,2629.8,2629.3,3.80315]
[1729260152247,3.80278,2629.7,2629.2,3.80341]
[1729260152628,3.80278,2629.7,2629.2,7.60673]
[1729260152843,3.80278,2629.7,2629.2,4.644963]
[1729260153057,4.55814,2630.1,2629.2,0.91770582]
[1729260153255,3.82112528,2630.2,2629.6,3.80277]
[1729260153421,0.40116681,2630.2,2629.4,0.8091]
[1729260153627,3.80252,2629.9,2629.4,0.8091]
[1729260154053,3.80252,2629.9,2629.4,4.61224]
[1729260154656,0.38210153,2630.2,2629.4,4.61224]
[1729260154657,3.80225,2630.1,2629.4,0.8091]
[1729260154955,0.38210153,2630.2,2629.5,3.803]
[1729260155107,7.60408,2630.2,2629.7,3.80266]
[1729260155309,7.60408,2630.2,2629.4,0.8091]
[1729260155310,3.802,2630.2,2629.6,3.80284]
[1729260155636,3.80231,2630.0,2629.5,3.803]
[1729260155809,3.8022,2630.1,2629.6,3.80278]
[1729260156014,3.8023,2630.0,2629.5,4.644513]
[1729260156547,3.80251,2629.9,2629.4,4.61223]
[1729260157514,3.80229,2630.0,2629.4,4.61223]
[1729260157913,3.80229,2630.0,2629.4,4.61214]
[1729260158113,3.80229,2630.0,2629.4,5.5378503]
[1729260158824,3.80252,2629.9,2629.4,5.5378503]
[1729260159133,3.80252,2629.9,2629.4,8.4152]
[1729260159457,3.80252,2629.9,2629.4,4.61214]
[1729260159625,3.80252,2629.9,2629.4,8.41519]
[1729260160213,3.0,2630.3,2629.1,0.8214]
[1729260160214,3.80287,2629.6,2629.1,0.8214]
[1729260160417,3.80287,2629.6,2628.9,3.80387]
[1729260160418,4.183367,2629.5,2628.9,3.80387]
[1729260160616,4.57466,2629.6,2629.0,3.80364]
[1729260160833,3.8031,2629.5,2629.0,3.80364]
[1729260161759,3.80324,2629.4,2628.8,8.42922]
[1729260161946,3.8033,2629.3,2628.8,0.8214]
[1729260162158,3.8035,2629.2,2628.8,0.8214]
[1729260162651,4.63379,2630.1,2629.2,0.8268]
[1729260162853,4.63379,2630.1,2629.4,3.8031]
[1729260163056,4.63379,2630.1,2629.5,3.80297]
[1729260163260,3.80235,2630.0,2629.3,3.80316]
[1729260163417,3.80235,2630.0,2629.4,3.80311]
[1729260163753,3.80251,2629.9,2629.3,4.69894766]
[1729260163971,3.80251,2629.9,2629.3,7.60648]
[1729260164266,3.80251,2629.9,2629.3,3.80321]
[1729260164454,3.80263,2629.8,2629.2,0.8268]
[1729260164663,3.80263,2629.8,2629.0,3.80361]
[1729260164664,0.8026,2629.6,2629.0,3.80361]
[1729260164828,4.60552,2629.6,2629.1,3.80347]
[1729260165220,4.60552,2629.6,2629.0,7.60725]
[1729260165453,4.60552,2629.6,2628.9,0.7888]
[1729260165454,3.80308,2629.5,2628.9,0.7888]
[1729260165613,3.80308,2629.5,2629.0,3.80364]
[1729260166862,3.80308,2629.5,2629.0,7.60728]
[1729260167016,3.80308,2629.5,2629.0,3.80364]
[1729260167457,3.80308,2629.5,2629.0,7.60728]
[1729260167626,3.80308,2629.5,2629.0,7.60727]
[1729260167826,3.80308,2629.5,2629.0,3.80363]
[1729260168126,3.80308,2629.5,2629.0,7.60727]
[1729260168724,3.80316,2629.4,2628.9,4.59265]
[1729260169296,3.80316,2629.4,2628.9,3.80385]
[1729260169496,3.80316,2629.4,2628.3,3.7912]
[1729260169497,0.772,2629.3,2628.3,3.7912]
[1729260169694,0.772,2629.3,2628.4,3.80452]
[1729260169934,3.80394,2628.9,2628.4,3.80452]
[1729260170090,3.80428,2628.7,2628.3,0.7912]
[1729260170289,0.772,2629.3,2628.3,0.7912]
[1729260170290,3.80402,2628.8,2628.3,0.7912]
[1729260170732,3.80399,2628.9,2628.3,4.59592]
[1729260170944,3.80397,2628.9,2628.3,4.59586]
[1729260171834,3.80409,2628.8,2628.3,0.7912]
[1729260172025,3.80409,2628.8,2628.3,4.59593]
[1729260172433,3.80409,2628.8,2628.3,4.59587]
[1729260172632,3.80395,2628.9,2628.4,3.80453]
[1729260172925,3.80395,2628.9,2628.3,0.7912]
[1729260173132,3.80405,2628.8,2628.3,4.59593]
[1729260173303,3.80405,2628.8,2628.3,8.40056]
[1729260173494,3.80405,2628.8,2628.3,4.59583]
[1729260173893,3.80405,2628.8,2628.3,0.7912]
[1729260174128,3.80429,2628.7,2628.1,8.13172657]
[1729260174430,3.80429,2628.7,2628.1,13.21786919]
[1729260174595,3.80438,2628.6,2628.0,0.8749896]
[1729260174803,3.0,2628.7,2628.0,0.0570896]
[1729260175040,3.80553,2627.8,2627.4,0.8179]
[1729260175243,3.80571,2627.7,2627.2,4.64322528]
[1729260175399,3.80547,2627.8,2627.3,3.80611]
[1729260175805,0.8165,2627.9,2627.4,3.80602]
[1729260176010,4.62194,2627.9,2627.4,3.80602]
[1729260176239,3.80546,2627.8,2627.4,3.80602]
[1729260177032,0.8165,2627.9,2627.4,3.80602]
[1729260177198,0.8165,2627.9,2627.2,4.62414]
[1729260177405,3.80553,2627.8,2627.3,3.80618]
[1729260177621,3.80553,2627.8,2627.2,4.62413]
[1729260177819,3.80562,2627.7,2627.2,4.62413]
[1729260178023,3.80562,2627.7,2627.2,8.43037]
[1729260178343,3.80562,2627.7,2627.2,9.27911824]
[1729260178547,3.80562,2627.7,2627.3,3.80617]
[1729260180235,3.80546,2627.8,2627.3,3.80617]
[1729260180399,3.80563,2627.7,2627.3,3.80617]
[1729260180601,3.80546,2627.8,2627.3,3.80617]
[1729260181511,4.62185,2627.9,2627.3,3.80612]
[1729260181750,4.58461,2628.2,2627.5,8.13260657]
[1729260182034,3.80511,2628.1,2627.5,8.13260657]
[1729260182236,3.80519,2628.0,2627.4,3.80603]
[1729260182441,0.838972,2628.1,2627.3,3.80617]
[1729260182442,3.80553,2627.8,2627.3,3.80617]
[1729260182827,3.80532,2627.9,2627.3,3.80617]
[1729260183197,7.61078,2627.9,2627.3,3.80617]
[1729260183401,7.61078,2627.9,2627.3,7.61229]